Workbook

Sheet Pasiūlymas
A1: Perkančioji organizacija, kuriai teikiamas pasiūlymas: | C1: VŠĮ Kauno klinikinė ligoninė
B3: PASIŪLYMAS
B4: Vienkartinės medicininės priemonės
A6: Data: | B6: 2018-04-10
A7: Nr.: | B7: 20324
A8: Vieta: | B8: Kaunas
A10: Tiekėjo pavadinimas /Jeigu dalyvauja ūkio subjektų grupė, surašomi visi dalyvių pavadinimai/ | C10: UAB "Skirgesa"
A11: Įmonės kodas /Jeigu dalyvauja ūkio subjektų grupė, surašomi visi dalyvių kodai/ | C11: 234449420
A12: PVM mokėtojo kodas /Jeigu dalyvauja ūkio subjektų grupė, surašomi visi dalyvių kodai/ | C12: LT344494219
A13: Banko pavadinimas, banko kodas, sąskaitos Nr. | C13: A/s. LT41 7300 0100 7979 6368, AB Swedbank, banko kodas 73000
A14: Tiekėjo adresas /Jeigu dalyvauja ūkio subjektų grupė, surašomi visi dalyvių adresai/ | C14: Energetikų g. 8, Kaunas
A15: Telefono numeris | C15: 8 37 457746
A16: Fakso numeris | C16: 8 37 458161
A17: El. pašto adresas | C17: info@skirgesa.lt
A18: Asmens, pasirašiusio pasiūlymą saugiu elektroniniu parašu, vardas, pavardė, pareigos | C18: Administratorė Gintarė Saročkienė
A19: Asmens, įgalioto pasirašyti sutartį, vardas, pavardė, pareigos | C19: Direktorius Skirmantas Akelis
A23: 1. Šiuo pasiūlymu pažymime, kad sutinkame su visomis pirkimo sąlygomis, nustatytomis: 1) pirkimo skelbime, paskelbtame Viešųjų pirkimų įstatymo nustatyta tvarka; 2) pirkimo sąlygose ir kituose pirkimo dokumentuose (jų paaiškinimuose, papildymuose).
A25: Siūlomas pirkimo objektas visiškai atitinka pirkimo sąlygose nustatytus reikalavimus ir jo kaina yra:
A28: Nr. | B28: Pavadinimas | C28: Kiekis | D28: Mato vienetas | E28: Kaina be PVM | F28: Suma be PVM | G28: Siūlomos prekės pavadinimas ir/ar gamintojas | H28: Siūlomos prekės parametrai
A29: 151. | B29: Elektrodai
A30: 151.1. | B30: Elektrodai vienkartiniai suaugusiems | C30: 90000 | D30: Vnt. | E30: 0.04 | F30: =E30*C30 -> 3600 | G30: ECG Electrode, Esvico Sp. Z.o.o.
A31: 151.1.1. | B31: 45 x 42mm | H31: 45 x 42mm
A32: 151.1.2. | B32: Konraktinė dalis Ag/AgCl skystas gelis, putos | H32: Kontaktinė dalis Ag/AgCl skystas gelis, putos
A33: 151.2. | B33: Elektrodai vienkartiniai vaikams | C33: 900 | D33: Vnt. | E33: 0.04 | F33: =E33*C33 -> 36 | G33: Pediatric ECG Electrode, Esvico Sp. Z.o.o.
A34: 151.2.1. | B34: 26 x 30mm | H34: 26 x 30mm
A35: 151.2.2. | B35: Konraktinė dalis Ag/AgCl skystas gelis, putos | H35: Kontaktinė dalis Ag/AgCl skystas gelis, putos
E36: Suma be PVM | F36: =SUM(F30:F33) -> 3636
E37: PVM suma | F37: =F38-F36 -> 181.8
E38: Suma su PVM | F38: =F36*1.05 -> 3817.8
A40: 152. | B40: Guminiai elektrodai
A41: 152.1. | B41: Guminiai elektrodai | C41: 100 | D41: Vnt.
A42: 152.1.1. | B42: Skirti prie Endomco ir Sonopuls aparatų. Išmatavimai 4 x 6 cm ± 0,5cm
A43: 152.2. | B43: Guminiai elektrodai | C43: 80 | D43: Vnt.
A44: 152.2.1. | B44: kirti prie Endomco ir Sonopuls aparatų. Išmatavimai 6 x 8 cm ± 0,5cm
E45: Suma be PVM
E46: PVM suma
E47: Suma su PVM
A49: 153. | B49: Neutralus paciento elektrodas
A50: 153.1. | B50: Neutralus paciento elektrodas | C50: 3000 | D50: Vnt.
A51: 153.1.1. | B51: Vienkartinis, neutralus paciento elektrodas. Individualiose pakuotėse
A52: 153.1.2. | B52: Laidus plotas 135±5cm², be latekso
A53: 153.1.3. | B53: Biosuderinamas
A54: 153.1.4. | B54: Padalintas, perdavimo medžiaga PET/aliuminis
A55: 153.1.5. | B55: Drugelio formos
A56: 153.1.6. | B56: Paviršius padengtas hidrogeliu, lipnus
E57: Suma be PVM
E58: PVM suma
E59: Suma su PVM
A61: 154. | B61: Elektrodai holteriui
A62: 154.1. | B62: Elektrodai holteriui | C62: 11000 | D62: Vnt. | E62: 0.07 | F62: =E62*C62 -> 770 | G62: ECG Electrodes, P. J. Dahlhausen & Co. GmbH
A63: 154.1.1. | B63: Holterio elektrodai turi būti nemažesni nei ø 55 mm skersmens | H63: Holterio elektrodai ø 60 mm skersmens
A64: 154.1.2. | B64: Kontaktinė dalis Ag/AgCl, skystas gelis, putos | H64: Kontaktinė dalis Ag/AgCl, skystas gelis, putos
E65: Suma be PVM | F65: =F62 -> 770
E66: PVM suma | F66: =F67-F65 -> 38.5
E67: Suma su PVM | F67: =F65*1.05 -> 808.5
A69: 155. | B69: Elektrodai
A70: 155.1. | B70: Elektrodai | C70: 3800 | D70: Vnt.
A71: 155.1.1. | B71: Elektrodai skirti odos darinių koaguliacijai
A72: 155.1.2. | B72: Vienkartiniai, nesterilūs
A73: 155.1.3. | B73: Aštrūs, nerūdijančio metalo
A74: 155.1.4. | B74: Tinkami elektro aparatui HYFRECATOR-2000
E75: Suma be PVM
E76: PVM suma
E77: Suma su PVM
A79: 156. | B79: EKG elektrodai
A80: 156.1. | B80: EKG elektrodai | C80: 20 | D80: Vnt. | E80: 25 | F80: =C80*E80 -> 500 | G80: Fazzini
A81: 156.1.1. | B81: Krūtininiai (guminiai, vakuminiai, komplekte 6 vnt.) | H81: Krūtininiai elektrodai, guminiai EKG aparatui Rinkinys iš 6 vienetų AG/AGCL 2062000324 24 mm
A82: 156.2. | B82: EKG elektrodai | C82: 20 | D82: Vnt. | E82: 17 | F82: =C82*E82 -> 340 | G82: Fazzini
A83: 156.2.1. | B83: Galūniniai (plastikiniai, komplekte 4 vnt.) | H83: Elektrodai-spaustukai EKG aparatui Rinkinys iš 4 vienetų 2011000300 Ag/AgCl
E84: Suma be PVM | F84: =SUM(F80:F83) -> 840
E85: PVM suma | F85: =F86-F84 -> 176.4
E86: Suma su PVM | F86: =F84*1.21 -> 1016.4
A88: 157. | B88: Terapijos elektrodas
A89: 157.1. | B89: Terapijos elektrodas. Elektrodai išorinės stimuliacijos- defibriliacijos | C89: 50 | D89: Vnt.
A90: 157.1.1. | B90: Vienkartiniai, kliniškai švarūs. Turi būti CE ženklinimas
A91: 157.1.2. | B91: Elektrodai su 1 m (3,5 ft) laidu
A92: 157.1.3. | B92: Sukurtas pacientams sveriantiems 15kg ar daugiau
A93: 157.1.4. | B93: Skirtas prijungti prie defibbriliatoriaus „LIFEPAK 20e“ 11/12/15
E94: Suma be PVM
E95: PVM suma
E96: Suma su PVM
A98: 158. | B98: Monopolinis elektrodas
A99: 158.1. | B99: Monopolinis elektrodas | C99: 40 | D99: Vnt.
A100: 158.1.1. | B100: Adata tiesi, pagaminta iš volframo lydinio
A101: 158.1.2. | B101: (Ilgis x diametras) 20x0,3mm ± 0,1mm
A102: 158.1.3. | B102: Daugkartinė, autoklavuojama
A103: 158.1.4. | B103: Elektrodo kištukas 2,4mm tipo
A104: 158.2. | B104: Monopolinis elektrodas | C104: 40 | D104: Vnt.
A105: 158.2.1. | B105: Trikampė kilputė, pagaminta iš volframo lydinio
A106: 158.2.2. | B106: Kilputės matmenys 9 ±0,1mm x 0,2mm
A107: 158.2.3. | B107: Daugkartinė, autoklavuojama
A108: 158.2.4. | B108: Elektrodo kištukas 2,4mm tipo
A109: 158.3. | B109: Monopolinis elektrodas | C109: 40 | D109: Vnt.
A110: 158.3.1. | B110: Apvali kilputė, pagaminta iš volframo lydinio
A111: 158.3.2. | B111: Kilputės skersmuo 5mm ±0,1mm storis 0,2mm
A112: 158.3.3. | B112: Daugkartinė, autoklavuojama
A113: 158.3.4. | B113: Elektrodo kištukas 2,4mm tipo
A114: 158.4. | B114: Monopolinis elektrodas | C114: 40 | D114: Vnt.
A115: 158.4.1. | B115: Apvali kilputė, pagaminta iš volframo lydinio
A116: 158.4.2. | B116: Kilputės skersmuo 8mm ±0,1mm storis 0,2mm
A117: 158.4.3. | B117: Daugkartinė, autoklavuojama
A118: 158.4.4. | B118: Elektrodo kištukas 2,4mm tipo
E119: Suma be PVM
E120: PVM suma
E121: Suma su PVM
A123: 159. | B123: Pasta elektrodų klijavimo
A124: 159.1. | B124: Pasta elektrodų klijavimo | C124: 7980 | D124: g
A125: 159.1.1. | B125: Skirta EEG elektrodų klijavimui
A126: 159.1.2. | B126: Sudėtyje yra: Polyoxyethylene20 cetyl Ether, Glycerin, CalciumCarbonate, 1,2 Propanediol, Potassium Chloride, Gelwhite, Sodium Chloride, Polyoxythylene 20 Sorbitol, Methylparaben, Propylparaben
E127: Suma be PVM
E128: PVM suma
E129: Suma su PVM
A131: 160. | B131: Pasta odos paruošimo
A132: 160.1. | B132: Pasta odos paruošimo | C132: 6400 | D132: g
A133: 160.1.1. | B133: Skirta EEG tyrimui
A134: 160.1.2. | B134: Sudėtyje yra: H2O, Aliuminum Oxide, 1,2 Propanediol, Sodium Polyacrylate, Methylparaben, Propylparaben, FD&C B1, FD&C R 40, FD&CY5
E135: Suma be PVM
E136: PVM suma
E137: Suma su PVM
A139: 161. | B139: Kaniulė nosies
A140: 161.1. | B140: Kaniulė nosies | C140: 60 | D140: Vnt. | E140: 0.25 | F140: =E140*C140 -> 15 | G140: Nasal Oxygen Cannula, ZARYS International Group
A141: 161.1.1. | B141: Vaikiška | H141: Vaikiška
E142: Suma be PVM | F142: =F140 -> 15
E143: PVM suma | F143: =F144-F142 -> 0.75
E144: Suma su PVM | F144: =F142*1.05 -> 15.75
A146: 162. | B146: Kaniulė deguonies
A147: 162.1. | B147: Kaniulė deguonies | C147: 12000 | D147: Vnt. | E147: 0.17 | F147: =E147*C147 -> 2040 | G147: Nasal Oxygen Cannula, Changshu Taining Medical Equipment
A148: 162.1.1. | B148: Suaugusiems, 2m ilgio | H148: Suaugusiems, 2m ilgio
E149: Suma be PVM | F149: =F147 -> 2040
E150: PVM suma | F150: =F151-F149 -> 102
E151: Suma su PVM | F151: =F149*1.05 -> 2142
A153: 163. | B153: Vamzdelis deguonies
A154: 163.1. | B154: Vamzdelis deguonies | C154: 50 | D154: Vnt.
A155: 163.1.1. | B155: 4 metrų su 5 jungtimi
E156: Suma be PVM
E157: PVM suma
E158: Suma su PVM
A160: 164. | B160: Jungtis deguonies vamzdelio pajungimui
A161: 164.1. | B161: Jungtis deguonies vamzdelio pajungimui | C161: 20 | D161: Vnt.
A162: 164.1.1. | B162: Jungtys: 15F/22M- jungtis deguonies vamzdelio pajungimui 6mm
E163: Suma be PVM
E164: PVM suma
E165: Suma su PVM
A167: 165. | B167: Rezekcijos kilpa
A168: 165.1. | B168: Pusmėnulio formos, tinkanti firmos Karl Storz rezektoskopui | C168: 30 | D168: Vnt.
E169: Suma be PVM
E170: PVM suma
E171: Suma su PVM
A173: 166. | B173: Rezekcijos kilpa
A174: 166.1. | B174: Pusmėnulio formos, tinkanti firmos Olympus rezektoskopui | C174: 30 | D174: Vnt.
E175: Suma be PVM
E176: PVM suma
E177: Suma su PVM
A179: 167. | B179: Rezekcijos kilpa
A180: 167.1. | B180: Pusmėnulio formos, tinkanti firmos Wolf rezektoskopui | C180: 30 | D180: Vnt.
E181: Suma be PVM
E182: PVM suma
E183: Suma su PVM
A185: 168. | B185: Rezekcijos volelis
A186: 168.1. | B186: Cilindro formos, tinkanti firmos Karl Storz rezektoskopui | C186: 10 | D186: Vnt.
E187: Suma be PVM
E188: PVM suma
E189: Suma su PVM
A191: 169. | B191: Rezekcijos volelis
A192: 169.1. | B192: Cilindro formos, tinkanti firmos Olympus rezektoskopui | C192: 10 | D192: Vnt.
E193: Suma be PVM
E194: PVM suma
E195: Suma su PVM
A197: 170. | B197: Rezekcijos volelis
A198: 170.1. | B198: Cilindro formos, tinkanti firmos Wolf rezektoskopui | C198: 10 | D198: Vnt.
E199: Suma be PVM
E200: PVM suma
E201: Suma su PVM
A203: 171. | B203: Vielos (prie rezektoskopo)
A204: 171.1. | B204: Vielos (prie rezektoskopo) | C204: 20 | D204: Vnt.
A205: 171.1.1. | B205: 1:1 sukimo perdavimas
A206: 171.1.2. | B206: Dengtos hidrofiline danga nuo 0,032 iki 0,035“storio, nuo 150 iki 180cm ilgio
A207: 171.1.3. | B207: Galimi modeliai: plieno arba 100% nitinolio
A208: 171.1.4. | B208: Modelis skirtas naudoti per odą >100cm ilgio, >7cm lenktu arba tiesiu galu
A209: 171.1.5. | B209: Galiukas tiesus arba lenktas ne mažiau 3cm, netraumuojantis (lankstus arba kietas)
E210: Suma be PVM
E211: PVM suma
E212: Suma su PVM
A214: 172. | B214: Geležtės osciliuojančio pjovimo pjūklui
A215: 172.1. | B215: Geležtės osciliuojančio pjovimo pjūklui | C215: 30 | D215: Vnt.
A216: 172.1.1. | B216: Osciliuojančio ir sagitalinio pjovimo geležtės, stambių bei smulkių kaulų osteosintezei
A217: 172.1.2. | B217: Geležtės turi tikti ligoninėje esančioms CONMED Linvatec Hall50, MPower2, PowerPro sistemoms
A218: 172.1.3. | B218: Geležtės techniniai parametrai: MClass tipo geležtės su iškylimais ir kiaurymėmis, graduotos kas 0,5cm
A219: 172.1.4. | B219: Plotis: 19mm ±1mm; ilgis: 105mm ± 1mm; storis: nuo 1,19mm iki 1,37mm (ne mažiau kaip 3 storių)
A220: 172.2. | B220: Geležtės osciliuojančio pjovimo pjūklui | C220: 30 | D220: Vnt.
A221: 172.2.1. | B221: Osciliuojančio ir sagitalinio pjovimo geležtės, stambių bei smulkių kaulų osteosintezei
A222: 172.2.2. | B222: Geležtės turi tikti ligoninėje esančioms CONMED Linvatec Hall50, MPower2, PowerPro sistemoms
A223: 172.2.3. | B223: Geležtės techniniai parametrai: MClass tipo geležtės su iškylimais ir kiaurymėmis, graduotos kas 0,5cm
A224: 172.2.4. | B224: Plotis: 19mm ± 1mm; ilgis: 90mm ± 1mm; storis: nuo 0,89mm iki 1,47mm (ne mažiau kaip 7 storių)
A225: 172.3. | B225: Geležtės osciliuojančio pjovimo pjūklui | C225: 30 | D225: Vnt.
A226: 172.3.1. | B226: Osciliuojančio ir sagitalinio pjovimo geležtės, stambių bei smulkių kaulų osteosintezei
A227: 172.3.2. | B227: Geležtės turi tikti ligoninėje esančioms CONMED Linvatec Hall50, MPower2, PowerPro sistemoms
A228: 172.3.3. | B228: Geležtės techniniai parametrai: MClass tipo geležtės su iškylimais ir kiaurymėmis, graduotos kas 0,5cm
A229: 172.3.4. | B229: Plotis: 25mm ± 1mm; ilgis: 90mm ± 1mm; storis: nuo 0,89mm iki 1,47mm (ne mažiau kaip 7 storių)
A230: 172.4. | B230: Geležtės osciliuojančio pjovimo pjūklui | C230: 30 | D230: Vnt.
... 244 more rows

Sheet Subtiekėjai
A2: Sutarties vykdymui numatome pasitelkti šiuos subtiekėjus / subteikėjus / subrangovus (įrašyti visus subtiekėjus / subteikėjus / subrangovus nepriklausomai nuo tiekiamų prekių/ teikiamų paslaugų/ atliekamų darbų vertės):
A4: Subtiekėjo / subteikėjo / subrangovo (-ų) pavadinimas (-ai) | C4: Adresas | F4: Trumpas aprašymas | I4: Procentas nuo pasiūlymo kainos be PVM
A5: _ | C5: _ | F5: _ | I5: _
A11: Jeigu pirkimo dokumentų 18 punkte numatytas subtiekimo / subteikimo / subrangos apribojimas: Mes patvirtiname, kad subtiekėjams / subteikėjams / subrangovams (tiekėjams, kuriuos pasamdysime dalies sutartyje numatytų prekių tiekimui /paslaugų teikimui / darbų atlikimui) perduodamų tiekti prekių / teikti paslaugų/ atlikti darbų dalis neviršys proc. pasiūlymo kainos be PVM.
A13: Mes patvirtiname, kad esame / nesame (nereikalingą išbraukti) laikomi asocijuotais (susijusiais) su Perkančiąja organizacija pagal Lietuvos Respublikoje galiojančių teisės aktų (Lietuvos Respublikos pelno mokesčio, Lietuvos Respublikos pridėtinės vertės mokesčio ir Lietuvos Respublikos gyventojų pajamų mokesčio įstatymų) nuostatas.
A15: Kartu su pasiūlymu pateikiami šie dokumentai:
A17: Eil.Nr. | B17: "Pateiktų skaitmeninių dokumentų (ar jų kopijų) pavadinimas (pasiūlymą sudarančių konfidencialių dokumentų pavadinimai pažymėti prierašu KONFIDENCIALU)" | H17: Prisegtos bylos (failo) pavadinimas
A18: 1 | B18: Pasiūlymas | H18: Pasiūlymas
A19: 2 | B19: Įgaliojimas pasirašyti pasiūlymą | H19: Įgaliojimas pasirašyti pasiūlymą
A20: 3 | B20: Europos bendrasis viešųjų pirkimų dokumentas | H20: Eurospos bendrasis viešųjų pirkimų dokumentas
A25: Pasiūlymo galiojimo užtikrinimui pateikiame :
A26: Pasiūlymo galiojimo užtikrinimas nereikalaujamas.
A27: (Nurodyti užtikrinimo būdą, dydį, dokumentus)
A29: Pasiūlymas galioja iki termino, nustatyto pirkimo dokumentuose. Pasiūlymo neatskiriama dalis yra (rašoma, jeigu buvo reikalauta prie pasiūlymo pridėti atitinkamą dokumentą)
A33: Tiekėjo arba jo įgalioto asmens pareigų pavadinimas | E33: Administratorė
A36: Pasirašančio asmens vardas ir pavardė | E36: Gintarė Saročkienė
A39: **kadangi visas pasiūlymas pasirašomas saugiu elektroniniu parašu, šio dokumento atskirai pasirašyti neprivaloma.
A100: 563-4
